Cogmind - Beta 13 @@@ ROGUE MODE // 2024.04.07 @ 03:37:37 Player: iromakkem Result: Destroyed by S-10 Pest with Light Assault Rifle Performance ------------- Evolutions (0) 0 Regions Visited (1) 200 Robots Destroyed (9) 45 Value Destroyed (301) 301 Prototype IDs (0) 0 Alien Tech Used (0) 0 Bonus (0) 0 TOTAL SCORE: 546 Bonus ------- None Cogmind --------- Core Integrity 0/250 Matter 288/300 Energy 125/125 System Corruption 0% Temperature Cool (0) Movement Walking (120) Location -10/Materials Parts ------- > --- POWER (1) -------- Light Ion Engine > --- PROPULSION (2) --- Improved Aluminum Leg Improved Aluminum Leg > --- UTILITY (2) ------ Small Storage Unit > --- WEAPON (2) ------- Assault Rifle Heavy Hammer > --- INVENTORY (8) ---- Ion Engine Light Nuclear Core Improved Aluminum Leg Heat Sink Particle Gun Grenade Launcher Heavy Hammer Peak State ------------ > --- POWER ------------ Light Ion Engine > --- PROPULSION ------- Improved Aluminum Leg Improved Aluminum Leg > --- UTILITY ---------- Small Storage Unit Light Armor Plating > --- WEAPON ----------- Assault Rifle Heavy Hammer > --- INVENTORY -------- Light Nuclear Core Improved Aluminum Leg Particle Gun Grenade Launcher Heavy Hammer [Rating: 11] Favorites ----------- Power Light Ion Engine Engine Light Ion Engine Propulsion Aluminum Leg Leg Aluminum Leg Utility Small Storage Unit Storage Small Storage Unit Protection Light Armor Plating Weapon Heavy Hammer Energy Gun Medium Laser Ballistic Gun Assault Rifle Impact Weapon Heavy Hammer Build | -11 -10 ------- Run | Yrd Mat Slots Evolved . | . . Power . | . . Propulsion . | . . Utility . | . . Weapon . | . . Parts Attached 14 | 6 8 Power 2 | 1 1 Engine 2 | 1 1 Core . | . . Reactor . | . . Propulsion 4 | 2 2 Treads . | . . Leg 4 | 2 2 Wheel . | . . Hover . | . . Flight . | . . Utility 2 | 1 1 Device . | . . Storage 1 | 1 . Processor . | . . Hackware . | . . Protection 1 | . 1 Artifact . | . . Weapon 6 | 2 4 Energy Gun 1 | 1 . Energy Cannon . | . . Ballistic Gun 2 | 1 1 Ballistic Cannon . | . . Launcher . | . . Special Weapon . | . . Impact Weapon 3 | . 3 Slashing Weapon . | . . Piercing Weapon . | . . Special Melee Weapon . | . . Unidentified Prototypes . | . . Parts Lost 4 | . 4 Power 1 | . 1 Propulsion 2 | . 2 Utility 1 | . 1 Weapon . | . . Highest Loss Streak 4 | . 4 To Critical Strikes . | . . Average Slot Usage (%) 92 | . 92 Engine 14 | . 14 Leg 28 | . 28 Storage 14 | . 14 Protection 7 | . 7 Energy Gun 4 | . 4 Ballistic Gun 13 | . 13 Impact Weapon 9 | . 9 Naked Turns . | . . Heaviest Build 16 | 11 16 Greatest Support 26 | 20 26 Greatest Overweight (x) 2 | 2 . Average Overweight (x) . | . . Largest Inventory Capacity 8 | 8 8 Average Capacity 7 | 7 8 Most Carried 8 | 8 8 Average Carried 6 | 5 7 Final Capacity 8 | 8 8 Final Carried 7 | 6 7 Class Distribution -------------------- 100% | Mutant Dominant Class ---------------- Mutant | -10/Materials Resources | -11 -10 ----------- Run | Yrd Mat Matter Collected 409 | 146 263 Remotely . | . . Salvage Created 351 | . 351 Parts 16 | . 16 Haulers Intercepted . | . . Recyclers Shooed . | . . Parts Field Recycled . | . . Retrieved Matter . | . . Parts Self-Destructed . | . . Prevented . | . . Kills | -11 -10 ------- Run | Yrd Mat Combat Hostiles Destroyed 8 | . 8 Melee 3 | . 3 Guns 5 | . 5 Classes Destroyed 2 | . 2 Watcher 1 | . 1 Grunt 8 | . 8 Best Kill Streak 3 | . 3 Combat Bots Only 3 | . 3 Max Kills in Single Turn 1 | . 1 Gunslinging . | . . Exploded . | . . Melee 1 | . 1 Uniques/NPCs Destroyed . | . . Combat | -11 -10 -------- Run | Yrd Mat Hostile Shots Fired 99 | . 99 Missed 18 | . 18 Damage Taken 899 | . 899 Core 253 | . 253 Absorbed by Shields . | . . Core Remaining (%) 100 | 100 . Volleys Fired 40 | . 40 Largest 2 | . 2 Hottest 70 | . 70 Shots Fired 53 | . 53 Gun 53 | . 53 Cannon . | . . Launcher . | . . Special . | . . Kinetic 40 | . 40 Thermal 13 | . 13 Explosive . | . . Electromagnetic . | . . Robot Hit Streak 6 | . 6 Robot Miss Streak 3 | . 3 Penetration Max . | . . Secondary Targets 1 | . 1 Max Gunslinging Chain 1 | . 1 Shots Hit Robots 39 | . 39 Core Hits 14 | . 14 Critical Kills 1 | . 1 Critical Parts Destroyed . | . . Critical Strikes 2 | . 2 Burn 1 | . 1 Smash 1 | . 1 Melee Attacks 11 | . 11 Impact 11 | . 11 Slashing . | . . Piercing . | . . Sneak Attacks . | . . Combat Hostiles . | . . Follow-up Attacks . | . . Damage Inflicted 659 | . 659 Guns 399 | . 399 Cannons . | . . Explosions . | . . Melee 260 | . 260 Ramming . | . . Kinetic 275 | . 275 Thermal 124 | . 124 Explosive . | . . Electromagnetic . | . . Impact 260 | . 260 Slashing . | . . Piercing . | . . Highest Corruption . | . . Average Corruption . | . . Corruption Purged . | . . Corruption Blocked . | . . Overload Shots . | . . Overflow Damage . | . . Projectiles . | . . Explosions . | . . Melee . | . . Knockbacks . | . . Impact . | . . Kinetic . | . . Secondary . | . . Self-Inflicted Damage . | . . Shots . | . . Rammed . | . . Targets Rammed . | . . Kicked . | . . Crushed . | . . Highest Temperature 339 | . 339 Average Temperature 168 | . 168 Received Heat Transfer 489 | . 489 Effects 1 | . 1 Energy Bleed 1 | . 1 Siege Activations . | . . Robots Corrupted . | . . Combat Hostiles . | . . Parts Fried . | . . Impact Corruptions . | . . Robots Melted . | . . Combat Hostiles . | . . Parts Melted 1 | . 1 Heat Transferred 444 | . 444 Parts Sabotaged . | . . Parts Stolen . | . . Parts Stripped . | . . Power Chain Reactions . | . . Alert | -11 -10 ------- Run | Yrd Mat Peak Influence 166 | . 166 Initial . | . . Average 69 | . 80 Maximum Alert Level . | . . Low Security (%) 100 | 100 100 Level 1 . | . . Level 2 . | . . Level 3 . | . . Level 4 . | . . Level 5 . | . . High Security . | . . Max Security . | . . Squads Dispatched 2 | . 2 Investigation 2 | . 2 Extermination . | . . Reinforcement . | . . Assault . | . . Garrison . | . . Intercept . | . . Searches Triggered . | . . Construction Impeded . | . . Haulers Reinforced . | . . Active Scanning Responses . | . . Cargo Convoy Interrupts . | . . Stealth | -11 -10 --------- Run | Yrd Mat Distress Signals 1 | . 1 Communications Jammed . | . . Distress Signals . | . . Times Spotted 11 | . 11 Peak Tracking Total 4 | . 4 Tactical Retreats . | . . Traps | -11 -10 ------- Run | Yrd Mat Traps Triggered . | . . Indirectly . | . . Trap Hack Attempts . | . . Triggered . | . . Disarmed . | . . Reprogrammed . | . . Reused . | . . Traps Extracted . | . . Installed . | . . Triggered . | . . Machines | -11 -10 ---------- Run | Yrd Mat Machines Disabled . | . . Max in Single Turn . | . . Machines Repaired . | . . Machines Dismantled . | . . Machines Sabotaged . | . . Overloaded Fab Kills . | . . Hacking | -11 -10 --------- Run | Yrd Mat Machines Accessed 4 | . 4 Terminals 4 | . 4 Fabricators . | . . Repair Stations . | . . Recycling Units . | . . Scanalyzers . | . . Garrison Access . | . . Total Hacks 14 | . 14 Successful 6 | . 6 Failed 8 | . 8 Catastrophic 3 | . 3 Database Lockouts . | . . Manual . | . . Terminals 14 | . 14 Fabricators . | . . Repair Stations . | . . Recycling Units . | . . Scanalyzers . | . . Garrison Access . | . . Terminal Hacks 6 | . 6 Alert Level 1 | . 1 Locate Traps 1 | . 1 Maintenance Status 1 | . 1 Security Status 1 | . 1 Reinforcement Status 1 | . 1 Zone Layout 1 | . 1 Fabricator Hacks . | . . Repair Station Hacks . | . . Recycling Unit Hacks . | . . Scanalyzer . | . . Garrison Access Hacks . | . . Unauthorized Hacks . | . . Terminals . | . . Fabricators . | . . Repair Stations . | . . Recycling Units . | . . Scanalyzers . | . . Garrison Access . | . . Data Cores Recovered . | . . Used . | . . Hacking Detections 3 | . 3 Full Trace Events 2 | . 2 Feedback Events . | . . Feedback Blocked . | . . Robot Schematics Acquired . | . . Robots Built . | . . Authchips . | . . Time . | . . Total Robot Build Rating . | . . Part Schematics Acquired . | . . Parts Built . | . . Authchips . | . . Time . | . . Total Part Build Rating . | . . Parts Repaired . | . . Time . | . . Parts Recycled . | . . Recycled Matter . | . . Retrieved Matter . | . . Retrieved Components . | . . Parts Scanalyzed . | . . Part Schematics Acquired . | . . Parts Damaged . | . . Bothacking | -11 -10 ------------ Run | Yrd Mat Used RIF Installer . | . . Robots Hacked . | . . Non-combat . | . . Combat . | . . Robot Hacks Applied . | . . Relay Couplers Released . | . . Fabnet Peak Effective % . | . . Robots Rewired . | . . Allies Hacked . | . . Hacks Repelled . | . . Allies | -11 -10 -------- Run | Yrd Mat Total Allies . | . . Largest Group . | . . Highest-Rated Group . | . . Highest-Rated Ally . | . . Total Orders . | . . Ally Attacks . | . . Total Damage . | . . Kills . | . . Allies Corrupted . | . . Allies Melted . | . . Intel | -11 -10 ------- Run | Yrd Mat Robot Analysis Total . | . . Derelict Logs Recovered . | . . Drone Launches . | . . Drone Recoveries . | . . Exploration | -11 -10 ------------- Run | Yrd Mat Turns Passed 397 | 55 342 Spaces Moved 194 | 39 155 Core 20 | 20 . Treads . | . . Legs 174 | 19 155 Wheels . | . . Hover . | . . Flight . | . . Fastest Speed 50 | 50 120 Average Speed 115 | 99 120 Slowest Speed 150 | 150 120 Overloaded Moves . | . . Propulsion Burnouts . | . . Robots Hopped . | . . Cave-ins Triggered . | . . Exploration Rate (%) 13 | 3 23 Regions Visited 1 Branch Regions . Pre-discovered Areas . | . . Known Exits Taken . | . . Unknown Exits Taken 1 | 1 . Scrap Searched . | . . Spaces Dug . | . . Terrain Destroyed . | . . Melee . | . . Projectile . | . . AOE . | . . Terrain Rammed . | . . Walls Destroyed . | . . Machines Disabled . | . . Actions | -11 -10 --------- Run | Yrd Mat Total 297 | 54 243 Wait 11 | . 11 Move 193 | 38 155 Hop . | . . Pick Up 20 | 10 10 Fast Attach 5 | 2 3 Attach 8 | 4 4 Detach . | . . Swap 1 | . 1 Drop 8 | . 8 Fire 40 | . 40 Melee 11 | . 11 Ram . | . . Kick . | . . Crush . | . . Escape Stasis . | . . Rewire . | . . Trap . | . . Miscellaneous . | . . Route ------- -11/Scrapyard -10/Materials (discovered 2 exits: [*Mat] / [*Min]) History --------- Turn | Location | Event 14 | -11/Scrapyard | Discovered new exit (range 16) 56 | -11/Scrapyard | Entered Materials 152 | -10/Materials | Discovered new exit (range 10) 201 | -10/Materials | Discovered new exit (range 10) 311 | -10/Materials | Build established: Mutant 320 | -10/Materials | Core integrity fell below 50% 349 | -10/Materials | Core integrity fell below 20% 370 | -10/Materials | Lost 4 parts (1p2n1u) 398 | -10/Materials | Destroyed by S-10 Pest with Light Assault Rifle Last Messages --------------- 00361_ R-06 Scavenger collects Sml. Laser. 00361_ K-01 Serf collects debris. 00365_ R-06 Scavenger collects Ion Engine. 00366_ K-01 Serf collects debris. 00368_ R-06 Scavenger collects Aluminum Leg. 00369_ K-01 Serf collects debris. 00369_ G-34 Mercenary destroyed. 00370_ K-01 Serf collects debris. 00373_ Acquired 42 matter. 00373_ K-01 Serf collects debris. 00375_ Acquired Heat Sink. 00377_ K-01 Serf collects debris. 00378_ Acquired Ion Engine. 00380_ K-01 Serf cleans the Material Processor. 00380_ R-06 Scavenger inserts Heat Sink into recycling unit. 00381_ Acquired 29 matter. 00382_ K-01 Serf collects debris. 00393_ W-16 Scout destroyed. 00393_ K-01 Serf collects debris. Map ----- +----------------------------------------------------+ | ??# ##"|||"##?????# # #???????? | | ??# #"" ""#?????# # #???????? | | ??# # #?????# + ###+###?? | | ??## # < #?????# # | | ???# # #?????# """ """ # | | ???# # #?????# """ """ # | | ???# ## ##?????# """ """ ############# | | ####+### ##??#############+###?????????? | | # =#! ##### ##### #?????????? | | # """= +%= ##????????? | | # """ #! T T !#??????? | | # """ # !#?????? | | # ## # ##### !#?????? | | # """ ## = ## ############ !#?????? | | # """ ##[=//]]##= ^ #? !#?????? | | # """ ##[ ]## #??!##?????? | | # ########## ""#??##??????? | | # """ "#????????#k ^ % ""#??????????? | | # """ T#????????#k % ^ T"#??????????? | | # """ "#????????# ""#??????????? | | # #????????# """ ""#??????????? | | ########????????# """"" #??????????? | | ????????????????# """"" ####???????? | | ????????????????# """"" """ ???????? | | ?????????########^ """ rY"#???????? | | ?????????# @ r """#???????? | | ?????????# < ####???????? | | ?????????# ^ ????????? | | ?????????####+###^ ????????? | | ??????????# ## #############???????? | | ??????????#""" ## !#???????????????????? | | ??????????#""" ## =%#???????????????????? | | ??????????#""" ## !#???????????????????? | | ###########""" ## #???????????????????? | | ?????????????????# #???????????????????? | | ?????????????????# s#???????????????????? | | ?????????????????? ???????????????????? | | ?????????????????? ???????????????????? | | ?????????????????? T ???????????????????? | | ?????????????????? ???????????????????? | | ?????????????????????????????????????????? | | ?????????????????????????????????????????? | | ?????????????????????????????????????????? | | ?????????????????????????????????????????? | | ?????????????????????????????????????????? | | ?????????????????????????????????????????? | | ?????????????????????????????????????????? | | ?????????????????????????????????????????? | | ?????????????????????????????????????????? | | ?????????????????????????????????????????? | +----------------------------------------------------+ Best States ------------- Heat Dissipation 25 Energy Generation 10 Energy Capacity 125 Matter Stores 300 Matter Capacity 300 Sight Range 16 Terrain Scan Density 10 Armor Coverage 150 Evasion (%) 55 Item Schematics ----------------- None Robot Schematics ------------------ None Fabricated ------------ Nothing Alien Tech Used ----------------- None Achievements -------------- None Challenges ------------ None Game ------ Seed BarrageAssaultPod Manual? 0 Play Time 00:06:57 Cumulative 10.1 hours Start 2024.04.07 @ 03:30:06 End 2024.04.07 @ 03:37:37 Sessions 1 Manual Loads 0 Difficulty Rogue Special Mode None Game No. 13 Rogue 13 Adventurer 0 Explorer 0 Win Type - Total 0 Types 0/0/0/0/0/0/0/0/0 Lore% 4 Gallery% 13 Achievement% 14 Wizard Run 0 Options --------- Layout 1 ASCII 0 Keyboard 0 Movement Mouse Keybinds 0 Fullscreen 1 Font 32/SmallcapsGlow Map View 50x35 Zoom Use 0% Tactical HUD 1 Map Filters NONE Filters NONE Steam 1 RUN: 68d0c001-96c8-4563-a86e-826631b63af4